bitfinex/quotes_SOLUSD_20251224
["timestamp","ask_amount","ask_price","bid_price","bid_amount"]
[1766590507247,44.25678184,122.35,122.3,0.72]
[1766590507450,4.63667185,122.34,122.3,0.72]
[1766590507755,0.7,122.39,122.33,5.32667185]
[1766590507928,20.27667185,122.38,122.33,5.32667185]
[1766590508256,8.17193756,122.37,122.33,5.32667185]
[1766590508626,12.80860941,122.37,122.33,0.69]
[1766590509444,8.87193756,122.37,122.33,0.69]
[1766590509641,13.50860941,122.37,122.33,0.69]
[1766590510151,12.80988334,122.36,122.31,4.63667185]
[1766590510448,12.80988334,122.36,122.3,23.11640148]
[1766590510449,4.63667185,122.34,122.3,0.69]
[1766590511231,15.64,122.35,122.3,0.69]
[1766590511633,4.63667185,122.34,122.3,5.32667185]
[1766590511847,112.31767296,122.4,122.34,0.69]
[1766590512033,12.90636166,122.41,122.36,0.69]
[1766590512235,4.63667185,122.4,122.36,0.69]
[1766590512431,29.39285785,122.41,122.36,0.69]
[1766590512648,5.33667185,122.4,122.36,0.69]
[1766590513137,4.73667185,122.41,122.37,0.69]
[1766590513472,0.1,122.41,122.38,0.69]
[1766590513637,13.60628633,122.41,122.36,5.32667185]
[1766590514163,8.96961448,122.41,122.36,5.32667185]
[1766590514359,13.60628633,122.41,122.36,5.32667185]
[1766590514567,5.33667185,122.4,122.36,0.69]
[1766590514735,5.33667185,122.4,122.35,4.63667185]
[1766590515064,5.33667185,122.38,122.34,0.69]
[1766590515247,4.63667185,122.39,122.34,5.32667185]
[1766590515434,5.33667185,122.39,122.34,5.32667185]
[1766590516367,13.50749499,122.39,122.34,5.32667185]
[1766590516540,8.1699823,122.4,122.36,0.69]
[1766590516742,8.8699823,122.4,122.36,0.69]
[1766590516940,8.1699823,122.4,122.36,5.32667185]
[1766590517140,12.80665415,122.4,122.36,0.69]
[1766590517464,8.8699823,122.4,122.36,0.69]
[1766590517966,28.42665415,122.4,122.36,0.69]
[1766590518160,44.2148189,122.4,122.36,0.69]
[1766590518468,14.92,122.4,122.37,0.69]
[1766590518642,0.1,122.41,122.37,5.32667185]
[1766590518837,0.1,122.41,122.39,0.69]
[1766590519174,0.1,122.41,122.39,5.32667185]
[1766590519662,0.1,122.41,122.39,0.69]
[1766590519843,0.1,122.41,122.39,5.32667185]
[1766590520276,0.7,122.45,122.4,5.32667185]
[1766590520591,4.63667185,122.43,122.35,30.87002252]
[1766590520745,5.33667185,122.42,122.36,0.69]
[1766590521065,4.63667185,122.41,122.37,0.69]
[1766590521273,5.33667185,122.4,122.35,5.32667185]
[1766590521442,5.33667185,122.4,122.35,0.69]
[1766590521641,8.17060217,122.39,122.35,5.32667185]
[1766590521957,8.17017143,122.4,122.36,5.32667185]
[1766590522146,4.63667185,122.43,122.39,0.69]
[1766590522752,5.33667185,122.43,122.39,0.69]
[1766590522955,0.7,122.43,122.39,0.69]
[1766590523455,4.63667185,122.42,122.39,0.69]
[1766590523779,27.72406314,122.44,122.39,5.32667185]
[1766590524074,30.61292312,122.44,122.4,0.69]
[1766590524245,16.39244293,122.45,122.41,0.69]
[1766590524445,8.22553183,122.44,122.39,8.21553183]
[1766590524743,8.22553183,122.43,122.39,0.69]
[1766590524947,7.52553183,122.43,122.39,0.69]
[1766590525172,8.22553183,122.44,122.39,8.21553183]
[1766590525374,7.52553183,122.43,122.39,8.21553183]
[1766590525772,7.52553183,122.43,122.37,8.17182713]
[1766590525773,8.22553183,122.42,122.37,0.69]
[1766590526071,15.69388857,122.43,122.39,0.69]
[1766590526262,8.16835674,122.43,122.4,0.69]
[1766590526745,15.69213044,122.45,122.41,0.69]
[1766590526946,8.16612503,122.46,122.42,7.52553183]
[1766590527171,7.52553183,122.47,122.43,0.69]
[1766590527345,7.52553183,122.46,122.43,0.69]
[1766590527548,15.62,122.47,122.43,0.69]
[1766590527748,15.6917558,122.46,122.43,0.69]
[1766590528073,8.22553183,122.45,122.4,8.21553183]
[1766590528257,7.52553183,122.44,122.4,0.69]
[1766590528579,7.52553183,122.43,122.4,0.69]
[1766590529161,0.7,122.45,122.4,0.69]
[1766590529366,7.52553183,122.44,122.4,0.69]
[1766590529575,0.7,122.45,122.4,0.69]
[1766590529777,8.16726559,122.44,122.4,0.69]
[1766590530074,15.69279742,122.44,122.4,0.69]
[1766590530653,8.16726559,122.44,122.4,0.69]
[1766590530874,15.69279742,122.44,122.4,0.69]
[1766590531182,8.16726559,122.44,122.4,0.69]
[1766590531368,16.39279742,122.44,122.4,0.69]
[1766590531879,8.22553183,122.44,122.4,0.69]
[1766590532173,16.3929806,122.44,122.4,0.69]
[1766590532680,7.52553183,122.42,122.36,10.43767296]
[1766590532868,7.52553183,122.41,122.37,8.21553183]
[1766590533077,8.22553183,122.41,122.37,0.69]
[1766590533376,28.58561276,122.44,122.39,0.69]
[1766590533582,7.52553183,122.43,122.39,0.69]
[1766590533879,44.20561276,122.44,122.4,8.21553183]
[1766590533880,23.78744877,122.44,122.4,8.21553183]
[1766590534089,23.78744877,122.44,122.41,8.21553183]
[1766590534090,14.92,122.44,122.41,8.21553183]
[1766590534747,21.11241366,122.48,122.42,8.21553183]
[1766590534952,15.62,122.48,122.43,8.21553183]
[1766590535174,23.14553183,122.48,122.44,0.69]
[1766590535771,23.7848169,122.48,122.44,0.69]
[1766590535954,31.31034873,122.48,122.44,0.69]
[1766590536159,8.22553183,122.47,122.42,0.69]
[1766590536355,0.7,122.47,122.42,0.69]
[1766590536584,0.7,122.47,122.42,8.21553183]
[1766590536768,7.52553183,122.46,122.42,8.21553183]
[1766590537084,7.52553183,122.46,122.42,0.69]
[1766590537259,0.72,122.47,122.42,0.69]
[1766590537260,8.24553183,122.47,122.42,8.21553183]
[1766590538086,15.69146356,122.46,122.42,0.69]
[1766590538265,8.16593173,122.46,122.42,0.69]
[1766590538467,15.69146356,122.46,122.42,0.69]
[1766590539392,8.22553183,122.45,122.4,0.72]
[1766590539600,0.7,122.45,122.41,0.72]
[1766590539898,8.22553183,122.45,122.41,0.72]
[1766590540069,15.69273678,122.45,122.41,0.72]
[1766590540589,8.16720495,122.45,122.41,0.72]
[1766590540783,15.69273678,122.45,122.41,0.72]
[1766590540991,7.52553183,122.44,122.37,0.72]
[1766590541171,8.22553183,122.43,122.38,8.24553183]
[1766590541372,7.52553183,122.39,122.33,0.81746096]
[1766590541572,7.52553183,122.37,122.28,14.92]
[1766590541886,14.92,122.39,122.33,8.17456151]
[1766590542072,22.44553183,122.41,122.36,7.52553183]
[1766590542272,7.52553183,122.4,122.37,0.72]
[1766590542690,14.92,122.41,122.37,8.24553183]
[1766590542995,7.52553183,122.41,122.37,0.72]
[1766590543180,7.52553183,122.39,122.33,0.72]
[1766590543367,7.52553183,122.38,122.35,0.72]
[1766590543572,25.35767296,122.42,122.32,14.92]
[1766590543573,15.62,122.39,122.33,8.24553183]
[1766590543791,7.52553183,122.37,122.33,8.24553183]
[1766590544098,7.52553183,122.37,122.34,0.72]
[1766590544298,7.52553183,122.36,122.32,15.64]
[1766590544488,29.30178147,122.37,122.32,0.72]
[1766590544683,7.52553183,122.35,122.32,0.72]
[1766590545195,0.7,122.36,122.29,0.72]
[1766590545196,7.52553183,122.33,122.29,0.72]
[1766590545395,7.52553183,122.33,122.26,20.64725922]
[1766590545396,7.52553183,122.32,122.27,8.24553183]
[1766590545586,26.05767296,122.33,122.28,0.72]
[1766590545780,14.92,122.33,122.29,8.24553183]
[1766590545985,14.92,122.33,122.29,7.52553183]
[1766590546185,23.14553183,122.34,122.29,8.89720517]
[1766590546380,31.31957247,122.34,122.29,8.24553183]
[1766590546792,31.31957247,122.34,122.3,0.72]
[1766590547097,23.09336864,122.35,122.3,0.72]
[1766590547470,23.09336864,122.35,122.31,7.52553183]
[1766590547675,23.09336864,122.35,122.3,0.72]
[1766590547998,7.52553183,122.37,122.32,7.52553183]
[1766590548201,8.17193756,122.37,122.33,8.24553183]
[1766590548575,23.09148625,122.38,122.34,8.24553183]
[1766590548781,8.17081849,122.39,122.35,7.52553183]
[1766590549084,8.17081849,122.39,122.35,8.24553183]
[1766590549285,8.17081849,122.39,122.35,0.72]
[1766590549483,8.17081849,122.39,122.35,8.24553183]
[1766590553782,16.39635032,122.39,122.35,0.72]
[1766590553995,7.52553183,122.38,122.33,0.72]
[1766590554200,8.22553183,122.38,122.33,8.24553183]
[1766590554403,0.7,122.38,122.34,8.24553183]
[1766590554584,8.87161045,122.38,122.34,8.24553183]
[1766590554899,8.22553183,122.37,122.32,7.52553183]
[1766590555103,8.22553183,122.35,122.29,23.81717296]
[1766590555297,8.22553183,122.35,122.3,16.42214417]
[1766590555604,0.7,122.35,122.31,7.52553183]
[1766590555812,0.7,122.35,122.31,8.24553183]
[1766590556014,14.92,122.37,122.32,8.24553183]
[1766590556181,23.14553183,122.37,122.32,8.24553183]
[1766590556721,8.17260542,122.36,122.32,8.24553183]
[1766590557204,8.87260542,122.36,122.32,8.24553183]
[1766590558105,16.39813725,122.36,122.31,7.52553183]
[1766590558281,36.82965081,122.36,122.31,8.24553183]
[1766590558907,7.52553183,122.35,122.31,0.72]
[1766590559411,8.22553183,122.35,122.31,0.72]
[1766590559778,14.92,122.34,122.28,0.72]
[1766590560111,0.7,122.33,122.29,7.52553183]
[1766590560309,8.22553183,122.33,122.28,8.24553183]
[1766590560483,0.7,122.32,122.28,0.72]
[1766590560684,0.7,122.32,122.28,8.24553183]
[1766590560884,8.17661488,122.3,122.26,15.84]
[1766590561209,7.52553183,122.31,122.28,0.72]
[1766590561210,14.92,122.31,122.28,0.72]
[1766590561388,14.92,122.31,122.29,0.72]
[1766590561586,23.79460966,122.33,122.29,8.24553183]
[1766590561788,23.79460966,122.33,122.29,7.52553183]
[1766590562603,0.7,122.36,122.32,7.52553183]
[1766590562800,33.58320479,122.37,122.32,8.24553183]
[1766590563111,0.7,122.36,122.32,8.24553183]
[1766590563498,14.92,122.37,122.33,7.52553183]
[1766590563823,0.7,122.38,122.34,8.24553183]
[1766590564395,16.39693952,122.38,122.34,0.72]
[1766590564894,16.39693952,122.38,122.33,8.24553183]
[1766590566312,0.7,122.38,122.34,7.52553183]
[1766590566808,14.92,122.39,122.35,0.72]
[1766590567014,23.09076478,122.39,122.35,8.24553183]
[1766590567391,19.32734146,122.41,122.37,7.52553183]
[1766590567597,15.64,122.41,122.37,8.18553183]
[1766590567898,16.41370472,122.43,122.38,7.52553183]
[1766590568097,16.41370472,122.43,122.38,8.18553183]
[1766590568098,23.16553183,122.43,122.38,8.18553183]
[1766590568612,15.64,122.43,122.39,8.18553183]
[1766590569204,23.80805155,122.43,122.39,0.66]
[1766590569609,23.80805155,122.43,122.39,8.18553183]
[1766590570011,14.92,122.43,122.4,8.18553183]
[1766590570819,0.72,122.42,122.38,8.18553183]
[1766590571016,16.41372872,122.43,122.38,8.18553183]
[1766590571398,8.88819689,122.43,122.39,8.18553183]
[1766590571600,23.08750981,122.44,122.4,8.18553183]
[1766590571798,14.92,122.44,122.4,8.18553183]
[1766590572006,15.64,122.44,122.39,0.66]
[1766590572220,23.80738559,122.44,122.39,0.66]
[1766590572420,23.80738559,122.44,122.4,7.52553183]
[1766590572700,31.33291742,122.44,122.39,8.18553183]
[1766590573100,0.72,122.43,122.39,8.18553183]
[1766590573828,8.24553183,122.42,122.37,0.66]
[1766590574135,43.50554958,122.44,122.36,14.92]
[1766590574136,0.72,122.4,122.36,0.66]
[1766590574339,0.72,122.4,122.36,8.18553183]
[1766590575132,8.89023585,122.4,122.36,8.18553183]
[1766590575421,8.89023585,122.4,122.36,0.66]
[1766590575731,8.89023585,122.4,122.36,8.18553183]
[1766590576135,8.89023585,122.4,122.35,0.66]
[1766590576340,0.72,122.4,122.34,20.43432972]
[1766590576621,23.08942703,122.41,122.37,8.18553183]
[1766590577618,23.08942703,122.41,122.38,0.66]
[1766590578026,23.08942703,122.41,122.36,8.17223715]
[1766590578027,14.92,122.41,122.39,7.52553183]
[1766590578208,51.74957101,122.45,122.4,0.66]
[1766590578407,51.74957101,122.45,122.4,8.18553183]
[1766590578725,0.72,122.44,122.4,8.18553183]
[1766590579116,23.08659861,122.45,122.41,8.18553183]
[1766590579424,22.44553183,122.47,122.42,8.18553183]
[1766590579623,23.16553183,122.47,122.42,8.18553183]
[1766590580231,8.16593173,122.46,122.42,0.66]
[1766590580418,8.24553183,122.45,122.4,8.18553183]
[1766590580610,8.24553183,122.45,122.41,0.66]
[1766590581433,8.16726559,122.44,122.41,0.66]
[1766590581731,8.16726559,122.44,122.4,7.52553183]
[1766590581914,8.24553183,122.43,122.38,8.18553183]
[1766590582807,0.72,122.42,122.38,8.18553183]
[1766590583107,8.24553183,122.42,122.38,0.66]
[1766590583306,16.41472649,122.42,122.38,0.66]
[1766590583515,8.88919466,122.42,122.38,0.66]
[1766590583829,16.41472649,122.42,122.38,0.66]
[1766590584027,15.69472649,122.42,122.38,0.66]
[1766590585205,16.41472649,122.42,122.38,0.66]
[1766590586027,13.5218596,122.42,122.38,0.66]
[1766590586259,13.52022259,122.44,122.39,4.63266494]
[1766590586536,13.52022259,122.44,122.41,0.66]
[1766590586537,23.08755765,122.44,122.41,0.66]
[1766590587514,12.7995285,122.45,122.41,0.66]
[1766590588725,13.5195285,122.45,122.41,0.66]
[1766590589441,13.5195285,122.45,122.41,5.29266494]
[1766590589742,8.88686356,122.45,122.41,5.29266494]
[1766590590315,8.88686356,122.45,122.41,0.66]
[1766590590515,4.63266494,122.44,122.4,0.66]
[1766590590924,33.93602502,122.45,122.4,5.29266494]
[1766590591828,5.35266494,122.44,122.38,15.58]
[1766590592135,2.5358429,122.42,122.38,0.66]
[1766590592330,8.16926721,122.41,122.38,0.66]
[1766590593442,8.16926721,122.41,122.36,8.17233909]
[1766590593443,10.70511011,122.41,122.36,0.66]
[1766590593641,10.70511011,122.41,122.34,30.87159844]
[1766590593642,1.8158429,122.39,122.34,0.66]
[1766590593822,1.8158429,122.38,122.34,0.66]
[1766590594023,4.63572559,122.38,122.34,0.66]
[1766590594459,12.80730083,122.38,122.34,0.66]
[1766590595133,8.17157524,122.38,122.34,0.66]
[1766590595449,12.80730083,122.38,122.34,0.66]
[1766590595645,12.80730083,122.38,122.32,8.17500504]
[1766590595646,5.35572559,122.37,122.32,5.29572559]
[1766590595820,8.89157524,122.38,122.33,0.66]
[1766590596145,19.55572559,122.37,122.33,0.66]
[1766590596443,28.44768249,122.37,122.33,0.66]
[1766590598346,23.0919569,122.37,122.33,5.29572559]
[1766590600954,14.92,122.37,122.34,0.67]
[1766590601148,13.46730203,122.38,122.34,0.67]
[1766590601149,15.58,122.38,122.34,5.30572559]
[1766590601339,28.38762221,122.38,122.34,0.67]
[1766590601760,48.81579674,122.38,122.34,0.67]
[1766590602130,28.38762221,122.38,122.34,5.30572559]
[1766590602440,28.38762221,122.38,122.34,0.67]
[1766590602627,48.81579674,122.38,122.34,0.67]
[1766590602824,48.81579674,122.38,122.32,0.67]
[1766590602825,0.66,122.36,122.32,0.67]
[1766590603156,5.29572559,122.34,122.29,5.30572559]
[1766590603338,0.66,122.33,122.29,5.30572559]
[1766590603663,5.29572559,122.33,122.29,0.67]
[1766590603839,5.29572559,122.32,122.27,13.48404132]
[1766590604039,8.1772835,122.29,122.24,8.38018479]
[1766590604256,8.1772835,122.29,122.25,0.67]
[1766590604257,12.81300909,122.29,122.25,0.67]
[1766590604462,13.47300909,122.29,122.25,0.67]
[1766590605132,8.8372835,122.29,122.24,13.68613716]
[1766590605332,13.47300909,122.29,122.24,5.50572559]
[1766590605649,8.8372835,122.29,122.24,5.50572559]
[1766590605842,0.66,122.29,122.25,0.67]
[1766590606044,5.29572559,122.29,122.25,0.67]
[1766590606257,13.47322071,122.29,122.25,0.67]
[1766590606649,13.47322071,122.29,122.24,4.83572559]
[1766590606853,14.92,122.28,122.24,0.2]
[1766590607053,19.55572559,122.28,122.24,0.2]
[1766590607254,14.92,122.28,122.24,5.50572559]
[1766590608259,5.29572559,122.27,122.24,0.2]
[1766590608449,23.09856382,122.28,122.24,0.2]
[1766590608653,28.39428941,122.28,122.24,0.2]
[1766590608865,5.29572559,122.27,122.24,0.2]
[1766590609356,23.75856382,122.28,122.24,0.2]
[1766590609541,4.63572559,122.27,122.24,0.2]
[1766590610063,28.39428941,122.28,122.24,0.2]
[1766590610760,0.66,122.27,122.24,0.2]
[1766590610937,5.29572559,122.27,122.24,0.2]
[1766590611136,19.55572559,122.26,122.22,0.67]
[1766590611337,14.92,122.26,122.23,0.67]
[1766590611554,14.92,122.26,122.24,0.67]
[1766590611948,14.92,122.26,122.22,8.18176199]
[1766590612147,14.92,122.26,122.23,0.67]
[1766590612974,14.92,122.26,122.2,0.87]
[1766590612975,5.29572559,122.25,122.2,0.87]
[1766590613166,5.29572559,122.25,122.21,0.67]
[1766590613972,0.66,122.25,122.2,0.2]
[1766590614158,20.21572559,122.24,122.2,0.2]
[1766590614484,20.21572559,122.24,122.2,0.87]
[1766590614682,28.39681048,122.24,122.2,0.87]
[1766590614978,5.29572559,122.23,122.2,0.2]
[1766590615180,19.57572559,122.22,122.2,0.2]
[1766590615547,20.23572559,122.22,122.2,0.2]
[1766590615777,14.94,122.22,122.19,1e-08]
[1766590615978,28.63265557,122.24,122.19,1e-08]
[1766590616178,19.57572559,122.23,122.19,1e-08]
[1766590616493,28.63265557,122.24,122.19,4.6357256]
[1766590616494,8.18108489,122.24,122.19,4.6357256]
[1766590616790,14.94,122.24,122.21,0.67]
[1766590616954,14.94,122.25,122.21,0.67]
[1766590617153,19.57572559,122.25,122.21,0.67]
[1766590617364,14.94,122.25,122.21,0.67]
[1766590617655,23.11890458,122.27,122.23,0.67]
[1766590617875,28.41463017,122.27,122.23,0.67]
[1766590618081,4.63572559,122.26,122.21,0.67]
[1766590618371,4.63572559,122.26,122.22,0.67]
[1766590618975,27.75463017,122.27,122.23,0.67]
[1766590619182,23.11890458,122.27,122.23,5.30572559]
[1766590620257,27.75463017,122.27,122.23,0.67]
[1766590621457,4.63572559,122.26,122.22,0.67]
[1766590621854,20.23572559,122.25,122.2,5.30572559]
[1766590622174,4.63572559,122.24,122.2,0.67]
[1766590623468,4.63572559,122.23,122.19,1e-08]
[1766590623671,4.63572559,122.23,122.19,0.67000001]
[1766590623866,4.63572559,122.23,122.19,1e-08]
[1766590623867,4.63572559,122.21,122.19,1e-08]
[1766590624357,14.94,122.21,122.19,1e-08]
[1766590625179,19.57572559,122.21,122.19,1e-08]
[1766590625770,4.63572559,122.2,122.19,1e-08]
[1766590626074,4.63572559,122.2,122.17,8.18484578]
[1766590626075,14.94,122.2,122.17,8.18484578]
[1766590626262,18.6196662,122.22,122.18,0.67]
[1766590626458,38.85539179,122.22,122.18,0.67]
[1766590626858,4.63572559,122.21,122.18,0.67]
[1766590627260,38.85539179,122.22,122.18,0.67]
[1766590627459,4.63572559,122.21,122.16,4.63572559]
[1766590627657,12.81888816,122.21,122.17,0.7]
[1766590628178,4.63572559,122.2,122.17,0.7]
[1766590628385,19.57572559,122.2,122.15,0.7]
[1766590628682,19.57572559,122.2,122.17,0.7]
[1766590628683,14.94,122.2,122.17,0.7]
[1766590628880,25.37767296,122.22,122.17,0.7]
[1766590629054,25.37767296,122.22,122.16,28.65066676]
[1766590629055,12.81702314,122.23,122.19,0.7]
[1766590629255,8.18129755,122.23,122.19,5.33572559]
[1766590629975,12.81702314,122.23,122.19,0.7]
[1766590630178,12.81702314,122.23,122.16,20.46496398]
[1766590630179,14.94,122.22,122.16,8.88575784]
[1766590630385,14.94,122.22,122.18,5.33572559]
[1766590630568,19.57572559,122.22,122.18,0.7]
[1766590631092,5.33572559,122.21,122.16,0.7]
[1766590631257,4.63572559,122.2,122.16,0.7]
[1766590631663,27.75931579,122.2,122.16,0.7]
[1766590632062,14.94,122.2,122.17,1.82262294]
[1766590632285,14.94,122.2,122.18,0.7]
[1766590632490,23.12333981,122.2,122.16,1.82262294]
[1766590632788,23.12333981,122.2,122.17,0.7]
[1766590635567,14.94,122.2,122.19,0.7]
[1766590636186,127.5242614,122.23,122.19,2.52262294]
[1766590636392,125.70163846,122.23,122.2,0.7]
[1766590637887,0.7,122.22,122.19,1.82262294]
[1766590638195,125.00163846,122.23,122.19,2.52262294]
[1766590638391,125.00163846,122.23,122.19,0.7]
[1766590638592,125.70163846,122.23,122.19,0.7]
[1766590638886,125.70163846,122.23,122.19,2.52262294]
[1766590642389,0.7,122.22,122.18,1.82262294]
[1766590642574,0.7,122.22,122.18,2.52262294]
[1766590642773,0.7,122.2,122.16,0.7]
[1766590643082,0.7,122.2,122.17,1.82262294]
[1766590643285,0.7,122.2,122.17,2.52262294]
[1766590643693,14.94,122.21,122.18,2.52262294]
[1766590643892,14.94,122.21,122.19,1.82262294]
[1766590644106,14.94,122.21,122.16,1.82262294]
[1766590644107,0.7,122.19,122.16,1.82262294]
[1766590644602,0.7,122.19,122.15,0.7]
[1766590644896,0.7,122.19,122.16,1.82262294]
[1766590645191,0.7,122.18,122.15,1.82262294]
[1766590645503,0.7,122.18,122.14,2.52262294]
[1766590645999,3.54863882,122.18,122.14,0.7]
[1766590646496,3.54863882,122.16,122.11,0.2]
[1766590646713,15.64,122.15,122.11,3.74863882]
[1766590647202,15.64,122.15,122.11,0.9]
[1766590647203,23.82666333,122.15,122.11,0.9]
[1766590647405,15.64,122.15,122.11,3.74863882]
[1766590647772,15.64,122.15,122.12,0.7]
[1766590648173,14.94,122.15,122.12,3.54863882]
[1766590648574,14.94,122.15,122.12,0.7]
[1766590648808,14.94,122.15,122.12,3.54863882]
[1766590649207,14.94,122.15,122.12,0.7]
[1766590649584,14.94,122.15,122.12,3.54863882]
[1766590650323,23.12672999,122.15,122.12,3.54863882]
[1766590650624,23.12672999,122.15,122.12,0.7]
[1766590651117,14.94,122.15,122.12,3.54863882]
[1766590651316,15.64,122.15,122.12,0.7]
[1766590651504,0.7,122.14,122.11,0.2]
[1766590652106,7.56136483,122.14,122.11,0.2]
[1766590652419,23.20136483,122.13,122.11,0.2]
[1766590652623,0.7,122.12,122.11,0.2]
[1766590652790,8.26136483,122.12,122.1,0.2]
[1766590652994,16.45035839,122.12,122.1,0.2]
[1766590653404,0.7,122.11,122.1,0.2]
[1766590653922,15.75035839,122.12,122.1,0.2]
[1766590653923,8.88899356,122.12,122.1,0.2]
[1766590654314,8.88866783,122.12,122.1,0.2]
[1766590654521,0.7,122.11,122.07,0.9]
[1766590654721,8.26136483,122.11,122.07,8.46136483]
[1766590655222,8.26136483,122.11,122.07,0.9]
[1766590656003,16.4507422,122.11,122.07,0.9]
[1766590656217,8.88937737,122.11,122.07,0.9]
[1766590656423,23.82896845,122.12,122.08,8.26136483]
[1766590656726,0.7,122.11,122.07,7.76136483]
[1766590656902,0.7,122.11,122.07,8.44136483]
[1766590657830,8.88973659,122.11,122.07,8.44136483]
[1766590658132,0.71,122.1,122.07,7.76136483]
[1766590658624,8.89973659,122.11,122.07,8.43136483]
[1766590658927,0.71,122.11,122.07,15.95332518]
[1766590659103,23.12896367,122.12,122.08,7.56136483]
[1766590659429,23.85800663,122.13,122.09,8.23136483]
[1766590659834,31.41937146,122.13,122.09,0.67]
[1766590660008,31.41937146,122.13,122.09,8.23136483]
[1766590660328,8.27136483,122.11,122.07,0.87]
[1766590660633,15.67,122.11,122.07,8.43136483]
[1766590661123,0.71,122.09,122.07,0.2]
[1766590661365,8.90083684,122.09,122.07,0.2]
[1766590661711,0.71,122.08,122.07,0.2]
[1766590661918,8.27136483,122.07,122.04,0.2]
[1766590662104,8.27136483,122.06,122.04,0.2]
[1766590662427,14.96,122.07,122.04,8.43136483]
[1766590662953,23.23136483,122.08,122.04,0.87]
[1766590663162,15.67,122.08,122.04,8.43136483]
[1766590663321,23.86150539,122.08,122.04,8.43136483]
[1766590663735,23.86150539,122.08,122.04,16.625146]
[1766590663736,0.71,122.08,122.04,16.625146]
[1766590663950,14.96,122.08,122.05,0.67]
[1766590664150,14.96,122.08,122.05,8.23136483]
[1766590664525,8.18799639,122.13,122.07,7.56136483]
[1766590664733,16.45936122,122.13,122.09,0.67]
[1766590664934,8.27136483,122.11,122.06,8.23136483]
[1766590665137,43.61798738,122.13,122.05,25.39767296]
[1766590665138,7.56136483,122.1,122.05,14.96]
[1766590665350,8.19202097,122.07,122.04,0.2]
[1766590665548,8.90165408,122.08,122.04,0.87]
[1766590665738,16.46301891,122.08,122.04,0.87]
[1766590665938,8.90165408,122.08,122.04,8.43136483]
[1766590666535,8.19091865,122.09,122.04,15.95536483]
[1766590666766,14.96,122.09,122.05,8.23136483]
[1766590667058,15.67,122.09,122.05,8.23136483]
[1766590667261,23.23136483,122.09,122.05,8.23136483]
[1766590667561,31.42246119,122.09,122.05,0.67]
[1766590667932,23.23136483,122.09,122.05,0.67]
[1766590668133,31.4221377,122.09,122.04,0.2]
[1766590668337,31.4221377,122.09,122.04,8.43136483]
[1766590669070,23.86077287,122.09,122.04,8.43136483]
[1766590669242,31.4221377,122.09,122.04,8.43136483]
[1766590671054,0.71,122.08,122.04,8.43136483]
[1766590671653,0.71,122.08,122.04,16.62530414]
[1766590671861,0.71,122.08,122.05,7.56136483]
[1766590672044,23.86077287,122.09,122.05,3.52266042]
[1766590673454,0.71,122.08,122.05,3.52266042]
[1766590673653,11.75448044,122.08,122.04,0.2]
[1766590674081,8.90182002,122.08,122.04,3.72266042]
[1766590674583,11.75448044,122.08,122.04,0.87]
[1766590674948,8.90182002,122.08,122.04,0.87]
[1766590675138,11.75448044,122.08,122.04,0.87]
[1766590675868,14.96,122.07,122.04,0.87]
[1766590677367,15.67,122.07,122.04,0.87]
[1766590677781,14.96,122.07,122.04,3.72266042]
[1766590678061,23.15264889,122.07,122.04,3.72266042]
[1766590678570,14.96,122.07,122.06,0.67]
[1766590678762,23.15202097,122.07,122.04,0.87]
[1766590678962,23.86202097,122.07,122.04,0.2]
[1766590679179,23.86202097,122.07,122.04,0.87]
[1766590680075,0.71,122.05,122.01,3.52266042]
[1766590680243,15.67,122.05,122.01,3.52266042]
[1766590681478,15.67,122.05,122.01,2.85266042]
[1766590681673,15.67,122.05,122.02,0.67]
[1766590682051,23.86357668,122.05,122.02,0.67]
[1766590682477,21.18944619,122.08,122.03,3.52266042]